bitfinex/quotes_BTCUSD_20250904
["timestamp","ask_amount","ask_price","bid_price","bid_amount"]
[1757009572357,1.55775426,110380.0,110370.0,8.518e-05]
[1757009572573,1.71043426,110380.0,110370.0,8.518e-05]
[1757009572780,1.7593058,110380.0,110370.0,8.518e-05]
[1757009573089,1.75294116,110380.0,110370.0,8.518e-05]
[1757009573324,1.75930598,110380.0,110370.0,8.518e-05]
[1757009574441,1.77719444,110380.0,110370.0,8.518e-05]
[1757009574647,1.87820203,110380.0,110370.0,8.518e-05]
[1757009574871,1.84561992,110380.0,110370.0,8.518e-05]
[1757009575922,1.82291238,110380.0,110370.0,8.518e-05]
[1757009576300,1.85550762,110380.0,110370.0,8.518e-05]
[1757009576508,1.89714929,110380.0,110370.0,8.518e-05]
[1757009576883,1.86455405,110380.0,110370.0,8.518e-05]
[1757009577083,2.22922436,110380.0,110370.0,8.518e-05]
[1757009577281,2.23771108,110380.0,110370.0,8.518e-05]
[1757009577513,1.89713858,110380.0,110370.0,8.518e-05]
[1757009577735,2.27029858,110380.0,110370.0,8.518e-05]
[1757009578159,2.26181186,110380.0,110370.0,8.518e-05]
[1757009579156,2.23770912,110380.0,110370.0,8.518e-05]
[1757009579393,2.26179603,110380.0,110370.0,8.518e-05]
[1757009579576,1.88863603,110380.0,110370.0,8.518e-05]
[1757009580341,2.26179603,110380.0,110370.0,8.518e-05]
[1757009580541,2.30773414,110380.0,110370.0,8.518e-05]
[1757009580743,2.49318542,110380.0,110370.0,8.518e-05]
[1757009581278,2.48470318,110380.0,110370.0,8.518e-05]
[1757009582358,2.43583164,110380.0,110370.0,8.518e-05]
[1757009583125,2.48583164,110380.0,110370.0,8.518e-05]
[1757009583325,2.53470318,110380.0,110370.0,8.518e-05]
[1757009583526,2.53470318,110380.0,110310.0,0.14034631]
[1757009583527,0.34,110340.0,110310.0,0.14034631]
[1757009583705,0.59377888,110340.0,110330.0,0.00518]
[1757009583908,1.14822577,110340.0,110330.0,0.00518]
[1757009585114,1.52138577,110340.0,110330.0,0.00518]
[1757009586377,1.52138577,110340.0,110330.0,0.00618]
[1757009586729,1.52138577,110340.0,110330.0,0.00718]
[1757009586930,1.58642105,110340.0,110330.0,0.00718]
[1757009587743,1.58642105,110340.0,110330.0,0.00522]
[1757009587949,1.58638105,110340.0,110330.0,0.002]
[1757009588601,1.58638105,110340.0,110330.0,0.001]
[1757009589042,0.18127435,110330.0,110320.0,0.00316]
[1757009589179,0.55443435,110330.0,110320.0,0.00316]
[1757009589386,0.70719435,110330.0,110320.0,0.00414]
[1757009590563,1.17391034,110330.0,110320.0,0.00514]
[1757009590776,1.51391034,110330.0,110320.0,0.00514]
[1757009590981,1.51391034,110330.0,110320.0,0.00814]
[1757009591387,1.51395034,110330.0,110320.0,0.004]
[1757009591598,1.14079034,110330.0,110320.0,0.00598]
[1757009591803,1.35951034,110330.0,110320.0,0.00914]
[1757009591984,1.51231034,110330.0,110320.0,0.00914]
[1757009592161,1.13915034,110330.0,110320.0,0.00814]
[1757009592614,1.13915034,110330.0,110320.0,0.00514]
[1757009592908,1.13915034,110330.0,110320.0,0.00614]
[1757009597117,0.98635034,110330.0,110320.0,0.00614]
[1757009597325,0.89443435,110330.0,110320.0,0.00614]
[1757009597766,0.37316,110330.0,110320.0,0.18743079]
[1757009598183,0.55443435,110330.0,110320.0,0.18743079]
[1757009598512,0.99994689,110340.0,110320.0,0.18743079]
[1757009598727,1.33994689,110340.0,110330.0,0.00316]
[1757009598952,1.71310689,110340.0,110330.0,0.00514]
[1757009599666,1.71410689,110340.0,110330.0,0.00514]
[1757009599884,1.71510689,110340.0,110330.0,0.00514]
[1757009601115,1.86778689,110340.0,110330.0,0.00514]
[1757009601364,1.86678689,110340.0,110330.0,0.00514]
[1757009601715,1.86778689,110340.0,110330.0,0.00514]
[1757009601919,1.86778689,110340.0,110310.0,0.3431769]
[1757009601920,0.18129079,110320.0,110310.0,8.552e-05]
[1757009602075,0.55445079,110320.0,110310.0,8.552e-05]
[1757009602281,0.55445079,110320.0,110310.0,0.00206552]
[1757009602483,0.55445079,110320.0,110310.0,0.00522552]
[1757009603093,0.55445079,110320.0,110310.0,0.00822552]
[1757009603299,0.56662316,110320.0,110310.0,0.00822552]
[1757009603655,0.55445079,110320.0,110310.0,0.18953274]
[1757009604029,0.18129079,110320.0,110310.0,0.18953274]
[1757009604233,0.55445079,110320.0,110310.0,0.18953274]
[1757009604826,0.55445079,110320.0,110310.0,0.00822552]
[1757009605054,0.56629525,110320.0,110310.0,0.01049186]
[1757009605927,0.56629525,110320.0,110310.0,0.19179908]
[1757009606138,0.56629525,110320.0,110310.0,0.18953274]
[1757009606481,0.56629525,110320.0,110310.0,0.00822552]
[1757009606681,0.55445079,110320.0,110310.0,0.19179908]
[1757009606896,0.55445079,110320.0,110310.0,0.18953274]
[1757009607297,0.55445079,110320.0,110310.0,0.00822552]
[1757009607702,0.34597291,110330.0,110310.0,0.00822552]
[1757009607916,0.55445079,110320.0,110310.0,0.00822552]
[1757009608525,0.55445079,110320.0,110310.0,0.00522552]
[1757009608985,0.55445079,110320.0,110310.0,0.00622552]
[1757009609225,0.55445079,110320.0,110310.0,0.00522552]
[1757009609431,0.55445079,110320.0,110310.0,0.00722552]
[1757009610266,0.55609079,110320.0,110310.0,0.00722552]
[1757009610481,1.08193079,110320.0,110310.0,0.00208552]
[1757009611064,1.08193079,110320.0,110310.0,0.00308552]
[1757009613236,1.10152065,110320.0,110310.0,0.00308552]
[1757009614866,1.10148065,110320.0,110310.0,0.00308552]
[1757009615361,1.08189079,110320.0,110310.0,0.00308552]
[1757009617813,1.10147836,110320.0,110310.0,0.00308552]
[1757009618446,1.53339435,110320.0,110310.0,0.00308552]
[1757009618654,1.53441435,110320.0,110310.0,0.00308552]
[1757009618867,1.53339435,110320.0,110310.0,0.00308552]
[1757009619140,1.62633034,110320.0,110310.0,0.00308552]
[1757009619363,1.53441435,110320.0,110310.0,0.00308552]
[1757009620610,1.53339435,110320.0,110310.0,0.00308552]
[1757009621111,1.53441435,110320.0,110310.0,0.00308552]
[1757009621518,1.58218794,110320.0,110310.0,0.00308552]
[1757009621731,1.60945081,110320.0,110310.0,0.00308552]
[1757009621952,1.7013668,110320.0,110310.0,0.00208552]
[1757009622157,1.73393808,110320.0,110310.0,0.00208552]
[1757009622374,1.5487268,110320.0,110310.0,8.552e-05]
[1757009622582,1.7012068,110320.0,110310.0,0.00108552]
[1757009622823,1.5487268,110320.0,110310.0,0.00108552]
[1757009623042,1.7012068,110320.0,110310.0,0.00108552]
[1757009624674,1.5487268,110320.0,110310.0,0.00108552]
[1757009624882,1.7011668,110320.0,110310.0,0.00108552]
[1757009625197,1.7001468,110320.0,110310.0,0.00108552]
[1757009625410,1.67573321,110320.0,110310.0,0.00108552]
[1757009626817,2.12123321,110320.0,110310.0,0.00108552]
[1757009627163,2.12119321,110320.0,110310.0,0.00108552]
[1757009629048,1.94543321,110320.0,110310.0,0.00108552]
[1757009629270,2.09783321,110320.0,110310.0,0.00108552]
[1757009629477,2.00423722,110320.0,110310.0,0.00617552]
[1757009629682,1.47871722,110320.0,110310.0,0.00617552]
[1757009629869,1.63107722,110320.0,110310.0,0.00617552]
[1757009630094,1.38680123,110320.0,110310.0,0.00617552]
[1757009630248,1.49231079,110320.0,110310.0,0.00617552]
[1757009631473,1.86612921,110320.0,110310.0,0.00617552]
[1757009631822,1.68483842,110320.0,110310.0,0.00617552]
[1757009632026,1.86612921,110320.0,110310.0,0.00617552]
[1757009632877,1.37376921,110320.0,110310.0,0.00617552]
[1757009633120,1.52612921,110320.0,110310.0,0.00617552]
[1757009635193,2.4261104,110320.0,110310.0,0.00108552]
[1757009635602,2.4250904,110320.0,110310.0,0.00108552]
[1757009635803,2.33317441,110320.0,110310.0,0.00108552]
[1757009637146,2.14868169,110320.0,110310.0,0.00108552]
[1757009637506,2.12868169,110320.0,110310.0,0.00108552]
[1757009638529,1.97632169,110320.0,110310.0,0.00108552]
[1757009638775,2.12864169,110320.0,110310.0,0.00617552]
[1757009640266,2.15590273,110320.0,110310.0,0.00108552]
[1757009641020,2.24781872,110320.0,110310.0,0.00108552]
[1757009641194,2.24883872,110320.0,110310.0,0.00108552]
[1757009642231,2.24781872,110320.0,110310.0,0.00108552]
[1757009643460,2.24883872,110320.0,110310.0,0.00108552]
[1757009643789,3.43318781,110320.0,110310.0,0.00108552]
[1757009643995,0.92831852,110290.0,110280.0,0.00311]
[1757009644237,0.55482782,110300.0,110280.0,0.00311]
[1757009644238,0.18130779,110310.0,110280.0,0.1799926]
[1757009644410,0.58204111,110320.0,110300.0,0.18132294]
[1757009644712,0.70710007,110320.0,110310.0,0.00509]
[1757009645149,0.70710007,110320.0,110310.0,0.18639722]
[1757009645382,0.03926162,110330.0,110310.0,0.18639722]
[1757009645584,0.03926162,110330.0,110320.0,0.18355692]
[1757009645754,0.03926162,110330.0,110320.0,0.18352079]
[1757009645964,0.37348921,110340.0,110330.0,0.18127435]
[1757009646099,0.37348921,110340.0,110330.0,0.18338435]
[1757009646299,0.37348921,110340.0,110330.0,0.18661435]
[1757009646806,0.74697842,110340.0,110330.0,0.18669988]
[1757009647221,0.37348921,110340.0,110330.0,0.18669988]
[1757009647415,0.37348921,110340.0,110330.0,0.18469988]
[1757009647746,0.37348921,110340.0,110330.0,0.18569988]
[1757009648118,0.74697842,110340.0,110330.0,0.18569988]
[1757009648334,0.37348921,110340.0,110330.0,0.18569988]
[1757009649333,0.93973338,110340.0,110330.0,0.18569988]
[1757009649733,0.56624417,110340.0,110330.0,0.18569988]
[1757009650297,0.38498624,110340.0,110330.0,0.18569988]
[1757009650680,0.56624417,110340.0,110330.0,0.18569988]
[1757009650886,0.93973338,110340.0,110330.0,0.18569988]
[1757009651485,0.91079545,110340.0,110330.0,0.18569988]
[1757009651888,1.09205338,110340.0,110330.0,0.18569988]
[1757009652654,0.71856417,110340.0,110330.0,0.18569988]
[1757009653123,0.53730624,110340.0,110330.0,0.18569988]
[1757009653299,0.71856417,110340.0,110330.0,0.18569988]
[1757009655302,0.71852417,110340.0,110330.0,0.18569988]
[1757009655541,1.09201338,110340.0,110330.0,0.18569988]
[1757009657070,1.09365338,110340.0,110330.0,0.00642553]
[1757009657272,1.65097457,110340.0,110330.0,0.00108553]
[1757009657475,1.18556937,110340.0,110330.0,0.00108553]
[1757009659717,1.18556937,110340.0,110330.0,0.00431553]
[1757009661159,1.18556937,110340.0,110330.0,0.00108553]
[1757009665902,1.03328937,110340.0,110330.0,0.00108553]
[1757009666100,1.18556937,110340.0,110330.0,0.00108553]
[1757009669123,1.52658937,110340.0,110330.0,0.00108553]
[1757009669547,1.55282467,110340.0,110330.0,0.00108553]
[1757009669757,1.55384467,110340.0,110330.0,0.00108553]
[1757009670763,1.40054467,110340.0,110330.0,0.00108553]
[1757009670966,1.55282467,110340.0,110330.0,0.00108553]
[1757009671465,1.40054467,110340.0,110330.0,0.00108553]
[1757009671667,1.55282467,110340.0,110330.0,0.00108553]
[1757009672242,1.40054467,110340.0,110330.0,0.00108553]
[1757009672444,1.55282467,110340.0,110330.0,0.00108553]
[1757009672619,1.63411497,110340.0,110330.0,0.00108553]
[1757009673025,1.55282467,110340.0,110330.0,0.00108553]
[1757009673933,1.92631388,110340.0,110330.0,0.00108553]
[1757009674134,1.94690288,110340.0,110330.0,0.00108553]
[1757009674935,1.94690288,110340.0,110330.0,8.553e-05]
[1757009675654,1.57341367,110340.0,110330.0,8.553e-05]
[1757009676305,1.6221971,110340.0,110330.0,8.553e-05]
[1757009676844,1.6211771,110340.0,110330.0,8.553e-05]
[1757009677675,1.99568631,110340.0,110330.0,8.553e-05]
[1757009678038,1.6211771,110340.0,110330.0,8.553e-05]
[1757009680408,1.99466631,110340.0,110330.0,8.553e-05]
[1757009681276,1.84238631,110340.0,110330.0,8.553e-05]
[1757009681447,1.6211771,110340.0,110330.0,8.553e-05]
[1757009684543,1.99466631,110340.0,110330.0,8.553e-05]
[1757009687728,1.99462631,110340.0,110330.0,8.553e-05]
[1757009691373,1.84238631,110340.0,110330.0,8.553e-05]
[1757009691595,1.99462631,110340.0,110330.0,8.553e-05]
[1757009691789,1.6211371,110340.0,110330.0,8.553e-05]
[1757009693474,1.620983,110340.0,110330.0,8.553e-05]
[1757009701391,1.93113338,110340.0,110330.0,8.553e-05]
[1757009701595,1.88708768,110340.0,110330.0,8.553e-05]
[1757009701811,2.37000053,110340.0,110330.0,8.553e-05]
[1757009702023,2.39436259,110340.0,110330.0,8.553e-05]
[1757009702307,2.15448377,110340.0,110330.0,8.553e-05]
[1757009702509,2.17078403,110340.0,110330.0,8.553e-05]
[1757009702684,2.17178403,110340.0,110330.0,8.553e-05]
[1757009703093,2.20343163,110340.0,110330.0,8.553e-05]
[1757009703498,2.20543163,110340.0,110330.0,8.553e-05]
[1757009703702,0.93295515,110340.0,110330.0,8.553e-05]
[1757009703900,1.74956999,110340.0,110330.0,8.553e-05]
[1757009704103,1.55069845,110340.0,110330.0,8.553e-05]
[1757009704304,1.67650845,110340.0,110330.0,8.553e-05]
[1757009704783,1.67550845,110340.0,110330.0,8.553e-05]
[1757009704963,1.70198522,110340.0,110330.0,8.553e-05]
[1757009705166,1.76125361,110340.0,110330.0,8.553e-05]
[1757009705387,1.79390121,110340.0,110330.0,8.553e-05]
[1757009706225,1.76125361,110340.0,110330.0,8.553e-05]
[1757009706397,1.79390121,110340.0,110330.0,8.553e-05]
[1757009706781,1.76125361,110340.0,110330.0,8.553e-05]
[1757009706979,1.79390121,110340.0,110330.0,8.553e-05]
[1757009707155,1.76125361,110340.0,110330.0,8.553e-05]
[1757009707832,1.79390121,110340.0,110330.0,8.553e-05]
[1757009708486,1.76125361,110340.0,110330.0,8.553e-05]
[1757009708932,1.60901361,110340.0,110330.0,8.553e-05]
[1757009709145,1.60099126,110340.0,110330.0,0.00522553]
[1757009709341,1.27589968,110340.0,110330.0,0.00522553]
[1757009709547,1.42235815,110340.0,110330.0,0.00522553]
[1757009709682,0.68933841,110340.0,110330.0,0.00522553]
[1757009710300,0.84157841,110340.0,110330.0,0.00522553]
[1757009710701,1.18157841,110340.0,110330.0,0.00522553]
[1757009710900,1.2101278,110340.0,110330.0,0.00522553]
[1757009711306,1.00957874,110340.0,110330.0,0.00522553]
[1757009711630,1.38273211,110340.0,110330.0,0.00522553]
[1757009711926,1.23049211,110340.0,110330.0,0.00522553]
[1757009712160,1.38437211,110340.0,110330.0,0.00522553]
[1757009712600,1.35582272,110340.0,110330.0,0.00522553]
[1757009713681,1.35418272,110340.0,110330.0,0.00522553]
[1757009713886,1.36487301,110340.0,110330.0,0.00522553]
[1757009714534,1.458429,110340.0,110330.0,8.553e-05]
[1757009714950,1.458429,110340.0,110330.0,0.00325553]
[1757009715167,1.57760225,110340.0,110330.0,0.00325553]
[1757009716240,1.57760225,110340.0,110330.0,0.00522553]
[1757009716423,1.48404626,110340.0,110330.0,0.00522553]
[1757009716748,1.33180626,110340.0,110330.0,0.00522553]
[1757009716921,1.48404626,110340.0,110330.0,0.00522553]
[1757009717340,1.33180626,110340.0,110330.0,0.00522553]
[1757009717573,1.48404626,110340.0,110330.0,0.00522553]
[1757009717774,1.33180626,110340.0,110330.0,0.00522553]
[1757009717930,0.68418822,110340.0,110330.0,0.00522553]
[1757009718130,1.05760038,110340.0,110330.0,0.00522553]
[1757009718521,1.05760038,110340.0,110330.0,0.00492553]
[1757009719165,1.43101254,110340.0,110330.0,0.00492553]
[1757009719407,0.19194822,110340.0,110330.0,0.00492553]
[1757009719643,0.27634445,110350.0,110330.0,0.1884658]
[1757009719644,0.18228871,110350.0,110330.0,0.1884658]
[1757009719858,0.33452871,110350.0,110340.0,0.18125793]
[1757009720066,0.67452871,110350.0,110340.0,0.18322793]
[1757009720615,0.67452871,110350.0,110340.0,0.00514]
[1757009720812,0.68529881,110350.0,110340.0,0.00514]
[1757009721620,0.68529881,110350.0,110340.0,0.00714]
[1757009721826,0.68529881,110350.0,110340.0,0.18939793]
[1757009725207,0.68529881,110350.0,110340.0,0.00814]
[1757009726231,0.34529881,110350.0,110340.0,0.18939793]
[1757009726642,0.34529881,110350.0,110340.0,0.00814]
[1757009727388,0.71871097,110350.0,110340.0,0.18939793]
[1757009727790,0.71871097,110350.0,110340.0,0.00814]
[1757009728741,0.34529881,110350.0,110340.0,0.00814]
[1757009729139,0.71871097,110350.0,110340.0,0.00814]
[1757009730506,0.72069097,110350.0,110340.0,0.00814]
[1757009731180,0.71871097,110350.0,110340.0,0.00814]
[1757009732970,0.71871097,110350.0,110340.0,0.18939793]
[1757009733378,0.71871097,110350.0,110340.0,0.00814]
[1757009734874,0.72069097,110350.0,110340.0,0.003]
[1757009735074,0.71871097,110350.0,110340.0,0.00814]
[1757009736603,0.71871097,110350.0,110340.0,0.18939793]
[1757009737218,0.56647097,110350.0,110340.0,0.18939793]
[1757009738153,0.56642376,110350.0,110340.0,0.18939793]
[1757009740375,0.56642376,110350.0,110340.0,0.00814]
[1757009740812,0.56642376,110350.0,110340.0,0.18939793]
[1757009740971,0.56642376,110350.0,110340.0,0.00814]
[1757009741172,1.43401592,110350.0,110340.0,0.003]
[1757009741380,1.43525592,110350.0,110340.0,0.003]
[1757009741776,1.06060376,110350.0,110340.0,0.003]
[1757009748548,1.43401592,110350.0,110340.0,0.003]
[1757009749272,1.06060376,110350.0,110340.0,0.003]
[1757009749676,1.06060376,110350.0,110340.0,0.00612]
[1757009749846,1.06060376,110350.0,110340.0,0.003]
[1757009751240,0.90840376,110350.0,110340.0,0.003]
[1757009751442,1.06060376,110350.0,110340.0,0.003]
[1757009752457,1.06056376,110350.0,110340.0,0.003]
[1757009753634,1.43378898,110350.0,110340.0,0.003]
[1757009755221,1.28162898,110350.0,110340.0,0.003]
[1757009755429,1.43378898,110350.0,110340.0,0.00612]
[1757009758176,1.28162898,110350.0,110340.0,0.00612]
[1757009758357,1.43378898,110350.0,110340.0,0.00612]
[1757009758781,1.43378898,110350.0,110340.0,0.00813]
[1757009759259,1.43378898,110350.0,110340.0,0.00612]
[1757009760381,0.5330116,110350.0,110340.0,0.00813]
[1757009760586,0.6851716,110350.0,110340.0,0.00813]
[1757009760805,1.05849029,110350.0,110340.0,0.18938793]
[1757009761009,0.71849029,110350.0,110340.0,0.18938793]
[1757009763054,0.56633029,110350.0,110340.0,0.18938793]
[1757009763676,0.71849029,110350.0,110340.0,0.00813]
[1757009764028,0.71849029,110350.0,110340.0,0.18938793]
[1757009764714,0.71849029,110350.0,110340.0,0.00813]
[1757009766392,0.71849029,110350.0,110340.0,0.18938793]
[1757009766954,0.71849029,110350.0,110340.0,0.00813]
[1757009767155,0.71849029,110350.0,110340.0,0.18938793]
[1757009767359,0.71849029,110350.0,110340.0,0.00813]
[1757009768411,0.71849029,110350.0,110340.0,0.18938793]
[1757009768617,0.71849029,110350.0,110340.0,0.00813]
[1757009768838,0.72044029,110350.0,110340.0,0.00813]
[1757009769596,0.56828029,110350.0,110340.0,0.00813]
[1757009769806,0.001,110350.0,110340.0,0.28130392]
[1757009770240,0.001,110350.0,110340.0,0.3085508]
[1757009770451,0.37431869,110350.0,110340.0,0.3085508]
[1757009770873,0.37431869,110350.0,110340.0,0.3065508]
[1757009771305,0.37431869,110350.0,110340.0,0.3115508]
[1757009771525,0.55556019,110350.0,110340.0,0.03837688]
[1757009771731,0.55751019,110350.0,110340.0,0.16245]
[1757009771937,0.95015827,110350.0,110340.0,0.005]
[1757009772144,0.57683958,110350.0,110340.0,0.008]
[1757009772509,0.57683958,110350.0,110340.0,0.00799]
[1757009772733,0.57683958,110350.0,110340.0,0.00999]
[1757009773105,0.57488958,110350.0,110340.0,0.19551365]
[1757009773310,0.57488958,110350.0,110340.0,0.18824793]
[1757009773689,0.57488958,110350.0,110340.0,0.19024793]
[1757009774792,0.20157089,110350.0,110340.0,0.19024793]
[1757009775240,0.57488958,110350.0,110340.0,0.19024793]
[1757009775666,0.02032939,110350.0,110340.0,0.19024793]
[1757009775817,0.39364808,110350.0,110340.0,0.19024793]
[1757009776188,0.57488958,110350.0,110340.0,0.19024793]
[1757009777031,0.39364808,110350.0,110340.0,0.19024793]
[1757009777452,0.001,110350.0,110340.0,0.19024793]
[1757009777662,0.001,110350.0,110340.0,0.56356662]
[1757009777895,0.001,110350.0,110340.0,0.65548261]
[1757009779450,0.001,110350.0,110340.0,1.0288013]
[1757009780963,0.001,110350.0,110340.0,1.4288013]
[1757009781176,0.001,110350.0,110340.0,1.60840422]
[1757009781404,0.001,110350.0,110340.0,1.23508553]
[1757009781845,0.001,110350.0,110340.0,0.86176684]
[1757009783781,0.001,110350.0,110340.0,1.23508553]
[1757009784488,0.001,110350.0,110340.0,0.46172684]
[1757009784918,0.001,110350.0,110340.0,0.86172684]
[1757009785366,0.001,110350.0,110340.0,0.30940684]
[1757009785587,0.37431869,110350.0,110340.0,0.30940684]
[1757009785801,0.001,110350.0,110340.0,0.46168684]
[1757009787466,0.001,110350.0,110340.0,0.83500553]
[1757009787667,0.001,110350.0,110340.0,0.46168684]
[1757009788129,0.001,110350.0,110340.0,0.8545961]
[1757009789750,0.001,110350.0,110340.0,0.48127741]
[1757009790192,0.001,110350.0,110340.0,0.8545961]
[1757009791145,0.001,110350.0,110340.0,0.8545161]
[1757009791874,0.001,110350.0,110340.0,0.7023161]
[1757009792079,0.001,110350.0,110340.0,0.8544761]
[1757009792493,0.001,110350.0,110340.0,0.68272553]
[1757009792705,0.37431869,110350.0,110340.0,0.30940684]
[1757009792912,0.37431869,110350.0,110340.0,0.46156684]
[1757009793328,0.001,110350.0,110340.0,0.46156684]
[1757009794523,0.001,110350.0,110340.0,0.48086567]
[1757009795100,0.001,110350.0,110340.0,0.85418436]
[1757009797147,0.001,110350.0,110340.0,1.19418436]
[1757009797352,0.001,110350.0,110340.0,0.82086567]
[1757009797533,0.001,110350.0,110340.0,0.82102567]
[1757009797739,0.001,110350.0,110340.0,1.19434436]
[1757009798796,0.001,110350.0,110340.0,1.59434436]
[1757009800840,0.001,110350.0,110340.0,1.22122567]
[1757009801013,0.37629869,110350.0,110340.0,0.64940684]
[1757009801213,0.00298,110350.0,110340.0,0.64940684]
[1757009801477,0.00298,110350.0,110340.0,0.80188684]
[1757009801677,0.37629869,110350.0,110340.0,0.45689684]
[1757009802017,0.37629869,110350.0,110340.0,0.27717392]
[1757009802217,0.37753869,110350.0,110340.0,0.42965392]
[1757009802428,0.37629869,110350.0,110340.0,0.42965392]
[1757009805360,0.37629869,110350.0,110340.0,0.43263392]
[1757009805561,0.00298,110350.0,110340.0,0.43263392]
[1757009805776,0.93085888,110350.0,110340.0,0.42957392]
[1757009806217,0.37629869,110350.0,110340.0,0.42957392]
[1757009806868,0.55754019,110350.0,110340.0,0.42957392]
[1757009807829,0.1842215,110350.0,110340.0,0.42957392]
[1757009808029,0.55754019,110350.0,110340.0,0.42957392]
[1757009809030,0.93085888,110350.0,110340.0,0.42957392]
[1757009809248,0.93085888,110350.0,110340.0,0.1564]
[1757009809423,0.93085888,110350.0,110340.0,0.004]
[1757009809670,0.93209888,110350.0,110340.0,0.004]
[1757009809886,0.93209888,110350.0,110340.0,0.15636]
[1757009810883,1.33184757,110350.0,110340.0,0.004]
[1757009811113,1.67184757,110350.0,110340.0,0.004]
[1757009811318,1.82420757,110350.0,110340.0,0.004]
[1757009811726,1.82424757,110350.0,110340.0,0.002]
[1757009812189,1.45092888,110350.0,110340.0,0.002]
[1757009812400,1.52637436,110350.0,110340.0,0.002]
[1757009812781,1.45092888,110350.0,110340.0,0.002]
[1757009813010,0.18125793,110340.0,110330.0,0.1524]
[1757009813232,0.92789531,110340.0,110330.0,0.15749]
[1757009813436,0.92987531,110340.0,110330.0,0.15749]
[1757009813643,0.55652931,110340.0,110330.0,0.15749]
[1757009814439,0.55652931,110340.0,110330.0,0.16049]
[1757009814812,0.92982069,110340.0,110330.0,0.16249]
[1757009815158,0.92982069,110340.0,110330.0,0.16038]
[1757009815560,0.92982069,110340.0,110330.0,0.1574]
[1757009816377,0.92982069,110340.0,110330.0,0.16038]
[1757009816581,0.92784069,110340.0,110330.0,0.34376435]
[1757009816786,0.001,110350.0,110340.0,0.18125793]
[1757009817003,0.37429138,110350.0,110340.0,0.18634793]
[1757009817821,0.55553288,110350.0,110340.0,0.18834793]
[1757009818231,0.55553288,110350.0,110340.0,0.18934793]
[1757009819101,0.55751288,110350.0,110340.0,0.18934793]
[1757009819926,0.55553288,110350.0,110340.0,0.18934793]
[1757009820123,0.37429138,110350.0,110340.0,0.18934793]
[1757009820332,0.37429138,110350.0,110340.0,0.28126392]
[1757009820928,0.001,110350.0,110340.0,0.28126392]
[1757009821615,0.001,110350.0,110340.0,0.30850781]
[1757009821820,0.18319562,110360.0,110350.0,0.1812415]
[1757009821997,0.18319562,110360.0,110350.0,0.42758749]
[1757009822224,0.18319562,110360.0,110350.0,0.43056749]
[1757009823063,0.18319562,110360.0,110350.0,0.43256749]
[1757009823485,0.92972838,110370.0,110360.0,0.18122508]
[1757009823689,0.93170838,110370.0,110350.0,0.43245749]
[1757009823894,0.93170838,110370.0,110360.0,0.18349039]
[1757009824100,0.18122508,110360.0,110350.0,0.43245749]
[1757009824282,0.93170838,110370.0,110350.0,0.43245749]
[1757009824476,0.18122508,110360.0,110350.0,0.43045749]
[1757009824630,0.55451646,110360.0,110350.0,0.43045749]
[1757009824816,0.55451646,110360.0,110350.0,0.43256749]
[1757009825028,0.55649646,110360.0,110350.0,0.43252749]
[1757009825240,0.55649646,110360.0,110330.0,0.19331806]
[1757009825241,0.1812415,110350.0,110330.0,0.19331806]
[1757009825446,0.55652931,110340.0,110330.0,0.31459197]
[1757009825702,0.55652931,110340.0,110330.0,0.43958405]
[1757009825906,0.55454931,110340.0,110330.0,0.43958405]
[1757009826319,0.55454931,110340.0,110330.0,0.09700599]
[1757009826529,0.55650931,110340.0,110320.0,0.28440259]
[1757009826738,0.18321793,110340.0,110330.0,0.33755435]
[1757009827177,0.18321793,110340.0,110330.0,0.16348]
[1757009827393,0.18321793,110340.0,110330.0,0.16028]
[1757009827603,0.18321793,110340.0,110330.0,0.15628]
[1757009827824,0.92980069,110340.0,110330.0,0.15928]
[1757009828034,0.92980069,110340.0,110330.0,0.007]
[1757009828035,1.17523668,110340.0,110330.0,0.007]
[1757009828269,1.08332069,110340.0,110330.0,0.003]
[1757009828487,1.08332069,110340.0,110330.0,0.006]
[1757009828693,0.92980069,110340.0,110330.0,0.006]
[1757009828900,0.55454931,110340.0,110330.0,0.18958435]
[1757009829136,0.55454931,110340.0,110330.0,0.19158435]
[1757009829350,0.55650931,110340.0,110330.0,0.18858435]
[1757009829595,0.55650931,110340.0,110330.0,0.19058435]
[1757009830442,0.18125793,110340.0,110330.0,0.19058435]
[1757009830810,0.55454931,110340.0,110330.0,0.19058435]
[1757009831671,0.37329138,110340.0,110330.0,0.19058435]
[1757009831871,0.55454931,110340.0,110330.0,0.19058435]
[1757009833362,0.18125793,110340.0,110330.0,0.19058435]
[1757009833581,0.55454931,110340.0,110330.0,0.19058435]
[1757009835170,0.18125793,110340.0,110330.0,0.19058435]
[1757009835369,0.55454931,110340.0,110330.0,0.19058435]
[1757009835572,0.1812415,110350.0,110340.0,0.18125793]
[1757009835784,0.1832015,110350.0,110340.0,0.33900793]
[1757009836639,0.55649288,110350.0,110340.0,0.34000793]
[1757009837273,0.55649288,110350.0,110340.0,0.15344]
[1757009837477,0.55649288,110350.0,110340.0,0.15444]
[1757009839145,0.55649288,110350.0,110340.0,0.002]
[1757009839382,0.60495135,110350.0,110340.0,0.002]
[1757009839583,0.60495135,110350.0,110340.0,0.1544]
[1757009839584,0.97824273,110350.0,110340.0,0.1544]
[1757009839806,0.18122508,110360.0,110340.0,0.18856793]
[1757009840136,0.37329138,110360.0,110350.0,0.0032]
[1757009840351,0.37329138,110360.0,110350.0,0.34158701]
[1757009840561,0.37329138,110360.0,110350.0,0.3414315]
[1757009844193,0.92972838,110370.0,110360.0,0.18122508]
[1757009844400,1.08644838,110370.0,110360.0,0.18333508]
[1757009844578,1.08644838,110370.0,110360.0,0.18653508]
[1757009845262,1.08644838,110370.0,110360.0,0.00531]
[1757009845404,1.08644838,110370.0,110360.0,0.0001041]
[1757009845886,1.08744838,110370.0,110360.0,0.0001041]
[1757009846742,1.46073976,110370.0,110360.0,0.0001041]
[1757009846944,1.08744838,110370.0,110360.0,0.18132918]
[1757009847149,1.08744838,110370.0,110360.0,0.0001041]
[1757009847355,1.08744838,110370.0,110360.0,0.18132918]
[1757009847762,1.08744838,110370.0,110360.0,0.0001041]
[1757009848424,1.46073976,110370.0,110360.0,0.0001041]
[1757009848657,0.714157,110370.0,110360.0,0.0001041]
[1757009848859,1.08744838,110370.0,110360.0,0.0001041]
[1757009849697,1.46073976,110370.0,110360.0,0.0001041]
[1757009850735,1.08744838,110370.0,110360.0,0.0001041]
[1757009851156,1.46073976,110370.0,110360.0,0.0001041]
[1757009851371,1.08736838,110370.0,110360.0,0.0054141]
[1757009851584,1.08736838,110370.0,110360.0,0.0033041]
[1757009852000,1.08736838,110370.0,110360.0,0.0054141]
[1757009852181,1.08736838,110370.0,110360.0,0.18663918]
[1757009852412,0.714077,110370.0,110360.0,0.18663918]
[1757009852655,1.08736838,110370.0,110360.0,0.18663918]
[1757009852866,0.93268838,110370.0,110360.0,0.18663918]
[1757009854237,0.40951781,110370.0,110360.0,0.18663918]
[1757009854366,0.59072647,110370.0,110360.0,0.18663918]